{"text_format":"3","workbook":"xlsx","n_sheets":1,"sheets":["Vonios pertvarkymo išlaidos"],"not_rendered":{"defined_names":3},"read":"whole","date_system":"1900"}

{"sheet":"Vonios pertvarkymo išlaidos","index":0,"n_rows":24,"n_cols":10,"rows_kept":24,"merged":[[1,1,2,3],[2,4,2,6],[2,7,2,9],[22,1,22,3],[22,4,22,6],[22,7,22,9],[23,1,23,3],[23,4,23,6],[23,7,23,9]]}
[null,"Vonios kambario pertvarkymo išlaidų darbalapis"]
[null,"PASTABA. Lentelės skirtumo stulpeliai parodys, ar faktinė suma viršijo planuojamą sumą.  Raudoni skaičiai nurodo didesnę nei planuotą sumą (neigiama reikšmė), o juodi skaičiai nurodo mažesnę nei planuotą sumą (teigiama reikšmė). "]
[{"$nulls":4},"Vieneto kaina (Eur)",null,null,"Bendra kaina (Eur)"]
[null,"Zona","Prekės","Kiekis","Apytikslė","Faktinės","Skirtumas","Apytikslė ","Faktinės ","Skirtumas "]
[null,"Vonia / dušas","Vonia, ketaus, 152 cm, standartinė",1,{"v":250,"d":"250.00 EUR"},{"$f":"RANDBETWEEN(E5+2,E5+20)","v":{"v":263,"d":"263.00 EUR"}},{"$f":"IFERROR(Išlaidos[[#This Row],[Apytikslė]]-Išlaidos[[#This Row],[Faktinės]], \"\")","v":{"v":-13,"d":"-13.00 EUR"}},{"$f":"IFERROR(Išlaidos[[#This Row],[Kiekis]]*Išlaidos[[#This Row],[Apytikslė]], \"\")","v":{"v":250,"d":"250.00 EUR"}},{"$f":"IFERROR(Išlaidos[[#This Row],[Kiekis]]*Išlaidos[[#This Row],[Faktinės]], \"\")","v":{"v":263,"d":"263.00 EUR"}},{"$f":"IFERROR(Išlaidos[[#This Row],[Apytikslė ]]-Išlaidos[[#This Row],[Faktinės ]], \"\")","v":{"v":-13,"d":"-13.00 EUR"}}]
[null,"Vonia / dušas","Dušo kabinos durys su vyriais, standartinės",1,{"v":200,"d":"200.00 EUR"},{"v":212,"d":"212.00 EUR"},{"$f":"IFERROR(Išlaidos[[#This Row],[Apytikslė]]-Išlaidos[[#This Row],[Faktinės]], \"\")","v":{"v":-12,"d":"-12.00 EUR"}},{"$f":"IFERROR(Išlaidos[[#This Row],[Kiekis]]*Išlaidos[[#This Row],[Apytikslė]], \"\")","v":{"v":200,"d":"200.00 EUR"}},{"$f":"IFERROR(Išlaidos[[#This Row],[Kiekis]]*Išlaidos[[#This Row],[Faktinės]], \"\")","v":{"v":212,"d":"212.00 EUR"}},{"$f":"IFERROR(Išlaidos[[#This Row],[Apytikslė ]]-Išlaidos[[#This Row],[Faktinės ]], \"\")","v":{"v":-12,"d":"-12.00 EUR"}}]
[null,"Vonia / dušas","Dušo galvutė, standartinė",1,{"v":50,"d":"50.00 EUR"},{"v":68,"d":"68.00 EUR"},{"$f":"IFERROR(Išlaidos[[#This Row],[Apytikslė]]-Išlaidos[[#This Row],[Faktinės]], \"\")","v":{"v":-18,"d":"-18.00 EUR"}},{"$f":"IFERROR(Išlaidos[[#This Row],[Kiekis]]*Išlaidos[[#This Row],[Apytikslė]], \"\")","v":{"v":50,"d":"50.00 EUR"}},{"$f":"IFERROR(Išlaidos[[#This Row],[Kiekis]]*Išlaidos[[#This Row],[Faktinės]], \"\")","v":{"v":68,"d":"68.00 EUR"}},{"$f":"IFERROR(Išlaidos[[#This Row],[Apytikslė ]]-Išlaidos[[#This Row],[Faktinės ]], \"\")","v":{"v":-18,"d":"-18.00 EUR"}}]
[null,"Vonia / dušas","Vonios siena, standartinė",1,{"v":200,"d":"200.00 EUR"},{"v":218,"d":"218.00 EUR"},{"$f":"IFERROR(Išlaidos[[#This Row],[Apytikslė]]-Išlaidos[[#This Row],[Faktinės]], \"\")","v":{"v":-18,"d":"-18.00 EUR"}},{"$f":"IFERROR(Išlaidos[[#This Row],[Kiekis]]*Išlaidos[[#This Row],[Apytikslė]], \"\")","v":{"v":200,"d":"200.00 EUR"}},{"$f":"IFERROR(Išlaidos[[#This Row],[Kiekis]]*Išlaidos[[#This Row],[Faktinės]], \"\")","v":{"v":218,"d":"218.00 EUR"}},{"$f":"IFERROR(Išlaidos[[#This Row],[Apytikslė ]]-Išlaidos[[#This Row],[Faktinės ]], \"\")","v":{"v":-18,"d":"-18.00 EUR"}}]
[null,"Spintelės","Pakabinama spintelė, 61 cm, prabangi",1,{"v":200,"d":"200.00 EUR"},{"v":211,"d":"211.00 EUR"},{"$f":"IFERROR(Išlaidos[[#This Row],[Apytikslė]]-Išlaidos[[#This Row],[Faktinės]], \"\")","v":{"v":-11,"d":"-11.00 EUR"}},{"$f":"IFERROR(Išlaidos[[#This Row],[Kiekis]]*Išlaidos[[#This Row],[Apytikslė]], \"\")","v":{"v":200,"d":"200.00 EUR"}},{"$f":"IFERROR(Išlaidos[[#This Row],[Kiekis]]*Išlaidos[[#This Row],[Faktinės]], \"\")","v":{"v":211,"d":"211.00 EUR"}},{"$f":"IFERROR(Išlaidos[[#This Row],[Apytikslė ]]-Išlaidos[[#This Row],[Faktinės ]], \"\")","v":{"v":-11,"d":"-11.00 EUR"}}]
[null,"Spintelės","Pastatoma spintelė, 76 cm, standartinė",2,{"v":100,"d":"100.00 EUR"},{"v":111,"d":"111.00 EUR"},{"$f":"IFERROR(Išlaidos[[#This Row],[Apytikslė]]-Išlaidos[[#This Row],[Faktinės]], \"\")","v":{"v":-11,"d":"-11.00 EUR"}},{"$f":"IFERROR(Išlaidos[[#This Row],[Kiekis]]*Išlaidos[[#This Row],[Apytikslė]], \"\")","v":{"v":200,"d":"200.00 EUR"}},{"$f":"IFERROR(Išlaidos[[#This Row],[Kiekis]]*Išlaidos[[#This Row],[Faktinės]], \"\")","v":{"v":222,"d":"222.00 EUR"}},{"$f":"IFERROR(Išlaidos[[#This Row],[Apytikslė ]]-Išlaidos[[#This Row],[Faktinės ]], \"\")","v":{"v":-22,"d":"-22.00 EUR"}}]
[null,"Stalviršiai","Keramikinė plytelė, prabangi (kiekis metrais)",5,{"v":22.5,"d":"22.50 EUR"},{"v":35,"d":"35.00 EUR"},{"$f":"IFERROR(Išlaidos[[#This Row],[Apytikslė]]-Išlaidos[[#This Row],[Faktinės]], \"\")","v":{"v":-12.5,"d":"-12.50 EUR"}},{"$f":"IFERROR(Išlaidos[[#This Row],[Kiekis]]*Išlaidos[[#This Row],[Apytikslė]], \"\")","v":{"v":112.5,"d":"112.50 EUR"}},{"$f":"IFERROR(Išlaidos[[#This Row],[Kiekis]]*Išlaidos[[#This Row],[Faktinės]], \"\")","v":{"v":175,"d":"175.00 EUR"}},{"$f":"IFERROR(Išlaidos[[#This Row],[Apytikslė ]]-Išlaidos[[#This Row],[Faktinės ]], \"\")","v":{"v":-62.5,"d":"-62.50 EUR"}}]
[null,"Maišytuvai","Vonios maišytuvas, standartinis",1,{"v":90,"d":"90.00 EUR"},{"v":110,"d":"110.00 EUR"},{"$f":"IFERROR(Išlaidos[[#This Row],[Apytikslė]]-Išlaidos[[#This Row],[Faktinės]], \"\")","v":{"v":-20,"d":"-20.00 EUR"}},{"$f":"IFERROR(Išlaidos[[#This Row],[Kiekis]]*Išlaidos[[#This Row],[Apytikslė]], \"\")","v":{"v":90,"d":"90.00 EUR"}},{"$f":"IFERROR(Išlaidos[[#This Row],[Kiekis]]*Išlaidos[[#This Row],[Faktinės]], \"\")","v":{"v":110,"d":"110.00 EUR"}},{"$f":"IFERROR(Išlaidos[[#This Row],[Apytikslė ]]-Išlaidos[[#This Row],[Faktinės ]], \"\")","v":{"v":-20,"d":"-20.00 EUR"}}]
[null,"Maišytuvai","Dušo maišytuvas, vienos svirties, standartinis",1,{"v":115,"d":"115.00 EUR"},{"v":119,"d":"119.00 EUR"},{"$f":"IFERROR(Išlaidos[[#This Row],[Apytikslė]]-Išlaidos[[#This Row],[Faktinės]], \"\")","v":{"v":-4,"d":"-4.00 EUR"}},{"$f":"IFERROR(Išlaidos[[#This Row],[Kiekis]]*Išlaidos[[#This Row],[Apytikslė]], \"\")","v":{"v":115,"d":"115.00 EUR"}},{"$f":"IFERROR(Išlaidos[[#This Row],[Kiekis]]*Išlaidos[[#This Row],[Faktinės]], \"\")","v":{"v":119,"d":"119.00 EUR"}},{"$f":"IFERROR(Išlaidos[[#This Row],[Apytikslė ]]-Išlaidos[[#This Row],[Faktinės ]], \"\")","v":{"v":-4,"d":"-4.00 EUR"}}]
[null,"Maišytuvai","Kriauklės maišytuvas, standartinis",1,{"v":95,"d":"95.00 EUR"},{"v":100,"d":"100.00 EUR"},{"$f":"IFERROR(Išlaidos[[#This Row],[Apytikslė]]-Išlaidos[[#This Row],[Faktinės]], \"\")","v":{"v":-5,"d":"-5.00 EUR"}},{"$f":"IFERROR(Išlaidos[[#This Row],[Kiekis]]*Išlaidos[[#This Row],[Apytikslė]], \"\")","v":{"v":95,"d":"95.00 EUR"}},{"$f":"IFERROR(Išlaidos[[#This Row],[Kiekis]]*Išlaidos[[#This Row],[Faktinės]], \"\")","v":{"v":100,"d":"100.00 EUR"}},{"$f":"IFERROR(Išlaidos[[#This Row],[Apytikslė ]]-Išlaidos[[#This Row],[Faktinės ]], \"\")","v":{"v":-5,"d":"-5.00 EUR"}}]
[null,"Grindys","Keramikinė plytelė, standartinė (kiekis kvadratiniais metrais)",35,{"v":12,"d":"12.00 EUR"},{"v":16,"d":"16.00 EUR"},{"$f":"IFERROR(Išlaidos[[#This Row],[Apytikslė]]-Išlaidos[[#This Row],[Faktinės]], \"\")","v":{"v":-4,"d":"-4.00 EUR"}},{"$f":"IFERROR(Išlaidos[[#This Row],[Kiekis]]*Išlaidos[[#This Row],[Apytikslė]], \"\")","v":{"v":420,"d":"420.00 EUR"}},{"$f":"IFERROR(Išlaidos[[#This Row],[Kiekis]]*Išlaidos[[#This Row],[Faktinės]], \"\")","v":{"v":560,"d":"560.00 EUR"}},{"$f":"IFERROR(Išlaidos[[#This Row],[Apytikslė ]]-Išlaidos[[#This Row],[Faktinės ]], \"\")","v":{"v":-140,"d":"-140.00 EUR"}}]
[null,"Įrankiai","Rankšluosčio laikiklis, standartinis",2,{"v":15,"d":"15.00 EUR"},{"v":33,"d":"33.00 EUR"},{"$f":"IFERROR(Išlaidos[[#This Row],[Apytikslė]]-Išlaidos[[#This Row],[Faktinės]], \"\")","v":{"v":-18,"d":"-18.00 EUR"}},{"$f":"IFERROR(Išlaidos[[#This Row],[Kiekis]]*Išlaidos[[#This Row],[Apytikslė]], \"\")","v":{"v":30,"d":"30.00 EUR"}},{"$f":"IFERROR(Išlaidos[[#This Row],[Kiekis]]*Išlaidos[[#This Row],[Faktinės]], \"\")","v":{"v":66,"d":"66.00 EUR"}},{"$f":"IFERROR(Išlaidos[[#This Row],[Apytikslė ]]-Išlaidos[[#This Row],[Faktinės ]], \"\")","v":{"v":-36,"d":"-36.00 EUR"}}]
[null,"Įrankiai","Tualetinio popieriaus laikiklis",1,{"v":10,"d":"10.00 EUR"},{"v":13,"d":"13.00 EUR"},{"$f":"IFERROR(Išlaidos[[#This Row],[Apytikslė]]-Išlaidos[[#This Row],[Faktinės]], \"\")","v":{"v":-3,"d":"-3.00 EUR"}},{"$f":"IFERROR(Išlaidos[[#This Row],[Kiekis]]*Išlaidos[[#This Row],[Apytikslė]], \"\")","v":{"v":10,"d":"10.00 EUR"}},{"$f":"IFERROR(Išlaidos[[#This Row],[Kiekis]]*Išlaidos[[#This Row],[Faktinės]], \"\")","v":{"v":13,"d":"13.00 EUR"}},{"$f":"IFERROR(Išlaidos[[#This Row],[Apytikslė ]]-Išlaidos[[#This Row],[Faktinės ]], \"\")","v":{"v":-3,"d":"-3.00 EUR"}}]
[null,"Apšvietimas","Įleidžiami šviestuvai, standartiniai",4,{"v":25,"d":"25.00 EUR"},{"v":27,"d":"27.00 EUR"},{"$f":"IFERROR(Išlaidos[[#This Row],[Apytikslė]]-Išlaidos[[#This Row],[Faktinės]], \"\")","v":{"v":-2,"d":"-2.00 EUR"}},{"$f":"IFERROR(Išlaidos[[#This Row],[Kiekis]]*Išlaidos[[#This Row],[Apytikslė]], \"\")","v":{"v":100,"d":"100.00 EUR"}},{"$f":"IFERROR(Išlaidos[[#This Row],[Kiekis]]*Išlaidos[[#This Row],[Faktinės]], \"\")","v":{"v":108,"d":"108.00 EUR"}},{"$f":"IFERROR(Išlaidos[[#This Row],[Apytikslė ]]-Išlaidos[[#This Row],[Faktinės ]], \"\")","v":{"v":-8,"d":"-8.00 EUR"}}]
[null,"Kriauklės","Klozetas, standartinis",2,{"v":60,"d":"60.00 EUR"},{"v":64,"d":"64.00 EUR"},{"$f":"IFERROR(Išlaidos[[#This Row],[Apytikslė]]-Išlaidos[[#This Row],[Faktinės]], \"\")","v":{"v":-4,"d":"-4.00 EUR"}},{"$f":"IFERROR(Išlaidos[[#This Row],[Kiekis]]*Išlaidos[[#This Row],[Apytikslė]], \"\")","v":{"v":120,"d":"120.00 EUR"}},{"$f":"IFERROR(Išlaidos[[#This Row],[Kiekis]]*Išlaidos[[#This Row],[Faktinės]], \"\")","v":{"v":128,"d":"128.00 EUR"}},{"$f":"IFERROR(Išlaidos[[#This Row],[Apytikslė ]]-Išlaidos[[#This Row],[Faktinės ]], \"\")","v":{"v":-8,"d":"-8.00 EUR"}}]
[null,"Kita",null,1,{"v":20,"d":"20.00 EUR"},{"v":24,"d":"24.00 EUR"},{"$f":"IFERROR(Išlaidos[[#This Row],[Apytikslė]]-Išlaidos[[#This Row],[Faktinės]], \"\")","v":{"v":-4,"d":"-4.00 EUR"}},{"$f":"IFERROR(Išlaidos[[#This Row],[Kiekis]]*Išlaidos[[#This Row],[Apytikslė]], \"\")","v":{"v":20,"d":"20.00 EUR"}},{"$f":"IFERROR(Išlaidos[[#This Row],[Kiekis]]*Išlaidos[[#This Row],[Faktinės]], \"\")","v":{"v":24,"d":"24.00 EUR"}},{"$f":"IFERROR(Išlaidos[[#This Row],[Apytikslė ]]-Išlaidos[[#This Row],[Faktinės ]], \"\")","v":{"v":-4,"d":"-4.00 EUR"}}]
[null,"Tarpinė suma",null,null,{"$f":"SUBTOTAL(109,Išlaidos[Apytikslė])","v":{"v":1464.5,"d":"1,464.50 EUR"}},{"$f":"SUBTOTAL(109,Išlaidos[Faktinės])","v":{"v":1624,"d":"1,624.00 EUR"}},{"$f":"SUBTOTAL(109,Išlaidos[Skirtumas])","v":{"v":-159.5,"d":"-159.50 EUR"}},{"$f":"SUBTOTAL(109,Išlaidos[[Apytikslė ]])","v":{"v":2212.5,"d":"2,212.50 EUR"}},{"$f":"SUBTOTAL(109,Išlaidos[[Faktinės ]])","v":{"v":2597,"d":"2,597.00 EUR"}},{"$f":"SUBTOTAL(109,Išlaidos[[Skirtumas ]])","v":{"v":-384.5,"d":"-384.50 EUR"}}]
[]
[null,"Nenumatytos išlaidos (pridėti maždaug 30 %)",null,null,{"$f":"IFERROR(Išlaidos[[#Totals],[Apytikslė]]*0.3, \"\")","v":{"v":439.34999999999997,"d":"439.35 EUR"}},null,null,{"$f":"IFERROR(Išlaidos[[#Totals],[Apytikslė ]]*0.3, \"\")","v":{"v":663.75,"d":"663.75 EUR"}}]
[null,"Bendros išlaidos",null,null,{"$f":"IFERROR(SUM(E21:E21), \"\")","v":{"v":1464.5,"d":"1,464.50 EUR"}},null,null,{"$f":"IFERROR(SUM(Išlaidos[[#Totals],[Apytikslė ]],Perteklius), \"\")","v":{"v":2876.25,"d":"2,876.25 EUR"}}]